[Event "Early-Titled-Tuesday-Blitz-May-14-2024"]
[Site "Chess.com"]
[Date "2024.05.14"]
[Round "3"]
[White "elcala"]
[Black "DarZay"]
[Result "1-0"]
[WhiteElo "1879"]
[BlackElo "2324"]
[TimeControl "180+1"]
[EndTime "8:30:14 PDT"]
[Termination "elcala won by checkmate"]

1. d4 {[%clk 0:03:00.9]} 1... d5 {[%clk 0:02:58.6]} 2. Nf3 {[%clk 0:03:00.4]}
2... Nf6 {[%clk 0:02:57.7]} 3. Bf4 {[%clk 0:03:00.4]} 3... Bf5 {[%clk
0:02:58.4]} 4. e3 {[%clk 0:02:58.7]} 4... e6 {[%clk 0:02:58.8]} 5. Bd3 {[%clk
0:02:57.9]} 5... Bxd3 {[%clk 0:02:56.6]} 6. Qxd3 {[%clk 0:02:57.7]} 6... c6
{[%clk 0:02:56.7]} 7. a3 {[%clk 0:02:50.1]} 7... Qb6 {[%clk 0:02:56]} 8. b4
{[%clk 0:02:46.9]} 8... Be7 {[%clk 0:02:54.7]} 9. c4 {[%clk 0:02:43.7]} 9...
dxc4 {[%clk 0:02:51.5]} 10. Qxc4 {[%clk 0:02:43.7]} 10... O-O {[%clk 0:02:45.3]}
11. O-O {[%clk 0:02:39.6]} 11... Nd5 {[%clk 0:02:44.2]} 12. Bg3 {[%clk 0:02:36]}
12... Nd7 {[%clk 0:02:43.8]} 13. Nc3 {[%clk 0:02:33.7]} 13... N7f6 {[%clk
0:02:42.2]} 14. Nxd5 {[%clk 0:02:31.3]} 14... cxd5 {[%clk 0:02:40.7]} 15. Qd3
{[%clk 0:02:28.4]} 15... Ne4 {[%clk 0:02:40.2]} 16. Nd2 {[%clk 0:02:22.8]} 16...
Nxg3 {[%clk 0:02:33]} 17. hxg3 {[%clk 0:02:21.9]} 17... a5 {[%clk 0:02:30.8]}
18. bxa5 {[%clk 0:02:01.3]} 18... Qxa5 {[%clk 0:02:27]} 19. Rfb1 {[%clk
0:01:54.3]} 19... Rfb8 {[%clk 0:02:23.6]} 20. Rb5 {[%clk 0:01:47.6]} 20... Qa4
{[%clk 0:02:23.5]} 21. Rab1 {[%clk 0:01:41.5]} 21... Ra7 {[%clk 0:02:11.9]} 22.
Qb3 {[%clk 0:01:13.2]} 22... Qxb3 {[%clk 0:02:07.2]} 23. R1xb3 {[%clk
0:01:10.9]} 23... Bxa3 {[%clk 0:01:57.6]} 24. Nb1 {[%clk 0:01:10.4]} 24... Bd6
{[%clk 0:01:46.6]} 25. Nc3 {[%clk 0:01:09.2]} 25... f5 {[%clk 0:01:35.5]} 26.
Rb6 {[%clk 0:01:07.4]} 26... Ra6 {[%clk 0:01:33.2]} 27. Rxb7 {[%clk 0:01:03.4]}
27... Rxb7 {[%clk 0:01:32.4]} 28. Rxb7 {[%clk 0:01:03.8]} 28... h6 {[%clk
0:01:22.8]} 29. Nb5 {[%clk 0:00:59.8]} 29... Bf8 {[%clk 0:01:15.8]} 30. Nc7
{[%clk 0:00:51.3]} 30... Rc6 {[%clk 0:01:10.3]} 31. Nb5 {[%clk 0:00:46.8]} 31...
Rc1+ {[%clk 0:01:06]} 32. Kh2 {[%clk 0:00:45.2]} 32... Rc2 {[%clk 0:01:05.2]}
33. Kg1 {[%clk 0:00:43.3]} 33... Bb4 {[%clk 0:00:59.3]} 34. Nc7 {[%clk
0:00:34.3]} 34... Be1 {[%clk 0:00:51.8]} 35. Nxe6 {[%clk 0:00:28.8]} 35... Bxf2+
{[%clk 0:00:51]} 36. Kf1 {[%clk 0:00:28.3]} 36... Bxe3 {[%clk 0:00:47.5]} 37.
Rxg7+ {[%clk 0:00:25.7]} 37... Kh8 {[%clk 0:00:47.2]} 38. Rf7 {[%clk 0:00:18.7]}
38... Rf2+ {[%clk 0:00:33.5]} 39. Ke1 {[%clk 0:00:17.4]} 39... Rxg2 {[%clk
0:00:33.1]} 40. Rxf5 {[%clk 0:00:16.3]} 40... Rxg3 {[%clk 0:00:29.7]} 41. Rxd5
{[%clk 0:00:15.4]} 41... Rg2 {[%clk 0:00:23.5]} 42. Rh5 {[%clk 0:00:12.7]} 42...
Kh7 {[%clk 0:00:20.6]} 43. d5 {[%clk 0:00:12.9]} 43... Kg6 {[%clk 0:00:09.9]}
44. Rh3 {[%clk 0:00:13.2]} 44... Bb6 {[%clk 0:00:07.9]} 45. Nf4+ {[%clk
0:00:12.5]} 45... Kg5 {[%clk 0:00:05]} 46. Nxg2 {[%clk 0:00:13.4]} 46... h5
{[%clk 0:00:03.3]} 47. Rd3 {[%clk 0:00:13.9]} 47... Kg4 {[%clk 0:00:03.6]} 48.
d6 {[%clk 0:00:13.6]} 48... Bd8 {[%clk 0:00:03.7]} 49. d7 {[%clk 0:00:13.4]}
49... h4 {[%clk 0:00:03.3]} 50. Ne3+ {[%clk 0:00:13.7]} 50... Kg3 {[%clk
0:00:03.3]} 51. Kf1 {[%clk 0:00:13.8]} 51... h3 {[%clk 0:00:03.3]} 52. Nf5+
{[%clk 0:00:14.2]} 52... Kh2 {[%clk 0:00:03]} 53. Rd2+ {[%clk 0:00:14.1]} 53...
Kh1 {[%clk 0:00:03.2]} 54. Ng3# {[%clk 0:00:13.6]} 1-0

[Event "Early-Titled-Tuesday-Blitz-May-14-2024"]
[Site "Chess.com"]
[Date "2024.05.14"]
[Round "3"]
[White "bazar-wokzal"]
[Black "jasrom"]
[Result "1-0"]
[WhiteElo "2618"]
[BlackElo "2345"]
[TimeControl "180+1"]
[EndTime "8:30:15 PDT"]
[Termination "bazar-wokzal won on time"]

1. e4 {[%clk 0:03:00.9]} 1... e6 {[%clk 0:02:46.8]} 2. d4 {[%clk 0:02:56.2]}
2... d5 {[%clk 0:02:45.7]} 3. e5 {[%clk 0:02:56.1]} 3... c5 {[%clk 0:02:45.2]}
4. c3 {[%clk 0:02:55.6]} 4... Nc6 {[%clk 0:02:45.1]} 5. Nf3 {[%clk 0:02:53.4]}
5... Bd7 {[%clk 0:02:44.3]} 6. a3 {[%clk 0:02:48.9]} 6... Nge7 {[%clk
0:02:42.2]} 7. Bd3 {[%clk 0:02:36.1]} 7... cxd4 {[%clk 0:02:36.3]} 8. cxd4
{[%clk 0:02:35.6]} 8... Qb6 {[%clk 0:02:36.2]} 9. Bc2 {[%clk 0:02:29.8]} 9...
Nf5 {[%clk 0:02:23.1]} 10. Bxf5 {[%clk 0:02:28.1]} 10... exf5 {[%clk 0:02:22.9]}
11. Nc3 {[%clk 0:02:27.8]} 11... Be6 {[%clk 0:02:22.8]} 12. O-O {[%clk
0:02:27.6]} 12... Be7 {[%clk 0:02:20.7]} 13. Na4 {[%clk 0:02:26.5]} 13... Qb5
{[%clk 0:02:18]} 14. Bg5 {[%clk 0:02:21.6]} 14... Bf8 {[%clk 0:02:16.1]} 15. Rc1
{[%clk 0:02:19.1]} 15... b6 {[%clk 0:02:11.3]} 16. b4 {[%clk 0:02:01.9]} 16...
h6 {[%clk 0:01:41.6]} 17. Be3 {[%clk 0:01:44.1]} 17... Nd8 {[%clk 0:01:02.3]}
18. Rc7 {[%clk 0:01:40.2]} 18... Be7 {[%clk 0:00:41.7]} 19. Qc2 {[%clk
0:01:25.1]} 19... Bd7 {[%clk 0:00:31.8]} 20. Nc3 {[%clk 0:01:21.5]} 20... Qa6
{[%clk 0:00:31.9]} 21. Nxd5 {[%clk 0:01:21.1]} 21... Ne6 {[%clk 0:00:20.5]} 22.
Rc3 {[%clk 0:00:45.1]} 22... Bd8 {[%clk 0:00:09]} 23. Nf4 {[%clk 0:00:35.7]}
23... Nxf4 {[%clk 0:00:08.9]} 24. Bxf4 {[%clk 0:00:35.8]} 24... Qb7 {[%clk
0:00:09]} 25. Rd1 {[%clk 0:00:30.6]} 25... Qd5 {[%clk 0:00:08.7]} 26. Nd2 {[%clk
0:00:24.9]} 26... g5 {[%clk 0:00:08.4]} 27. Be3 {[%clk 0:00:14.4]} 27... f4
{[%clk 0:00:08.8]} 28. Ne4 {[%clk 0:00:13]} 28... fxe3 {[%clk 0:00:08.7]} 29.
Nd6+ {[%clk 0:00:12.5]} 29... Kf8 {[%clk 0:00:08.9]} 30. fxe3 {[%clk 0:00:12.4]}
30... h5 {[%clk 0:00:06.9]} 31. Rf1 {[%clk 0:00:12]} 31... Be6 {[%clk
0:00:06.3]} 32. Qd2 {[%clk 0:00:08.9]} 32... h4 {[%clk 0:00:04.2]} 33. e4 {[%clk
0:00:09]} 33... Qa2 {[%clk 0:00:04.4]} 34. Rc2 {[%clk 0:00:07.2]} 34... Qb3
{[%clk 0:00:03.5]} 35. d5 {[%clk 0:00:07.3]} 35... h3 {[%clk 0:00:03.8]} 36.
dxe6 {[%clk 0:00:06.6]} 36... hxg2 {[%clk 0:00:03.8]} 37. Rxf7+ {[%clk
0:00:05.9]} 37... Kg8 {[%clk 0:00:04.1]} 38. e7 {[%clk 0:00:05.7]} 38... Bxe7
{[%clk 0:00:03.6]} 39. Rxe7 {[%clk 0:00:05]} 39... Rh5 {[%clk 0:00:03.3]} 40.
Rcc7 {[%clk 0:00:02.3]} 40... Qh3 {[%clk 0:00:01.9]} 41. Rg7+ {[%clk 0:00:00.4]}
41... Kh8 {[%clk 0:00:02.2]} 42. Nf7+ {[%clk 0:00:00.6]} 42... Kxg7 {[%clk
0:00:01.2]} 43. Nxg5+ {[%clk 0:00:01.5]} 1-0

[Event "Early-Titled-Tuesday-Blitz-May-14-2024"]
[Site "Chess.com"]
[Date "2024.05.14"]
[Round "3"]
[White "ZeZacarias"]
[Black "Kombinator01"]
[Result "1-0"]
[WhiteElo "2035"]
[BlackElo "2360"]
[TimeControl "180+1"]
[EndTime "8:30:15 PDT"]
[Termination "ZeZacarias won by resignation"]

1. d4 {[%clk 0:02:51.1]} 1... Nf6 {[%clk 0:02:58.4]} 2. c4 {[%clk 0:02:50.6]}
2... g6 {[%clk 0:02:58.6]} 3. Nc3 {[%clk 0:02:49.2]} 3... d6 {[%clk 0:02:58.9]}
4. e4 {[%clk 0:02:47.5]} 4... Bg7 {[%clk 0:02:59.1]} 5. Nf3 {[%clk 0:02:48.1]}
5... O-O {[%clk 0:02:59]} 6. h3 {[%clk 0:02:48.8]} 6... e5 {[%clk 0:02:55]} 7.
d5 {[%clk 0:02:48.6]} 7... a5 {[%clk 0:02:52.4]} 8. Be3 {[%clk 0:02:48.6]} 8...
Na6 {[%clk 0:02:44.8]} 9. g4 {[%clk 0:02:48.7]} 9... h6 {[%clk 0:02:33.7]} 10.
Be2 {[%clk 0:02:46.5]} 10... Nxe4 {[%clk 0:02:31.9]} 11. Nxe4 {[%clk 0:02:44.3]}
11... f5 {[%clk 0:02:32.1]} 12. gxf5 {[%clk 0:02:42.4]} 12... gxf5 {[%clk
0:02:32]} 13. Nc3 {[%clk 0:02:39.1]} 13... e4 {[%clk 0:02:28.7]} 14. Nd4 {[%clk
0:02:22.4]} 14... f4 {[%clk 0:02:27.6]} 15. Bc1 {[%clk 0:02:21.7]} 15... Nc5
{[%clk 0:02:00]} 16. Ne6 {[%clk 0:01:54.9]} 16... Bxe6 {[%clk 0:01:50.4]} 17.
dxe6 {[%clk 0:01:55.8]} 17... Qh4 {[%clk 0:01:42.9]} 18. Qd5 {[%clk 0:01:38.4]}
18... Rae8 {[%clk 0:01:31.4]} 19. Nxe4 {[%clk 0:01:24.7]} 19... Nxe6 {[%clk
0:01:11.5]} 20. Bg4 {[%clk 0:01:19.6]} 20... Qe7 {[%clk 0:00:57.9]} 21. Rg1
{[%clk 0:01:08.7]} 21... f3 {[%clk 0:00:52.1]} 22. Bxe6+ {[%clk 0:01:00.1]}
22... Qxe6 {[%clk 0:00:52.5]} 23. Bxh6 {[%clk 0:00:59.4]} 23... Qxd5 {[%clk
0:00:50.8]} 24. Rxg7+ {[%clk 0:00:58.6]} 24... Kh8 {[%clk 0:00:48.6]} 25. cxd5
{[%clk 0:00:56.5]} 25... Rxe4+ {[%clk 0:00:48.6]} 26. Kf1 {[%clk 0:00:50.5]}
26... Rf6 {[%clk 0:00:47.5]} 27. Rg3 {[%clk 0:00:41.6]} 27... Rxh6 {[%clk
0:00:46.7]} 28. Rxf3 {[%clk 0:00:41.7]} 28... Re7 {[%clk 0:00:44]} 29. Rc1
{[%clk 0:00:35]} 29... Rh5 {[%clk 0:00:42.1]} 30. Rd1 {[%clk 0:00:31.6]} 30...
Kg7 {[%clk 0:00:42]} 31. Rd4 {[%clk 0:00:31.6]} 31... Kg6 {[%clk 0:00:38.1]} 32.
Rg4+ {[%clk 0:00:31.2]} 32... Rg5 {[%clk 0:00:35.8]} 33. Rd4 {[%clk 0:00:25]}
33... Ree5 {[%clk 0:00:30.4]} 34. Rc3 {[%clk 0:00:22.1]} 34... Re7 {[%clk
0:00:29.8]} 35. h4 {[%clk 0:00:21.1]} 35... Rf5 {[%clk 0:00:29.2]} 36. f4 {[%clk
0:00:19.5]} 36... Kh5 {[%clk 0:00:28.6]} 37. Rh3 {[%clk 0:00:16.7]} 37... Ref7
{[%clk 0:00:28.7]} 38. Ke2 {[%clk 0:00:14]} 38... Rxf4 {[%clk 0:00:28.6]} 39.
Rxf4 {[%clk 0:00:14.2]} 39... Rxf4 {[%clk 0:00:29.2]} 40. Rc3 {[%clk 0:00:14.5]}
40... Rf7 {[%clk 0:00:29.1]} 41. Rc4 {[%clk 0:00:14.9]} 41... b5 {[%clk
0:00:24.4]} 42. Rd4 {[%clk 0:00:10.2]} 42... Rf5 {[%clk 0:00:21]} 43. a4 {[%clk
0:00:09.7]} 43... b4 {[%clk 0:00:20.4]} 44. Kd3 {[%clk 0:00:09.3]} 44... Rf2
{[%clk 0:00:19]} 45. b3 {[%clk 0:00:08.6]} 45... Rh2 {[%clk 0:00:16.9]} 46. Kc4
{[%clk 0:00:08.6]} 46... Rh3 {[%clk 0:00:16]} 47. Kb5 {[%clk 0:00:07.5]} 47...
Rxb3 {[%clk 0:00:16.6]} 48. Kxa5 {[%clk 0:00:08.4]} 48... Rc3 {[%clk 0:00:11.9]}
49. Kxb4 {[%clk 0:00:07.3]} 49... Rc1 {[%clk 0:00:09]} 50. a5 {[%clk 0:00:07.5]}
50... c5+ {[%clk 0:00:09.2]} 51. dxc6 {[%clk 0:00:07.1]} 51... Rxc6 {[%clk
0:00:09.7]} 52. Kb5 {[%clk 0:00:07.7]} 52... Rc5+ {[%clk 0:00:09.7]} 53. Kb6
{[%clk 0:00:07.5]} 53... Rc1 {[%clk 0:00:09.1]} 54. Ra4 {[%clk 0:00:06.6]} 54...
Rb1+ {[%clk 0:00:09.4]} 55. Kc6 {[%clk 0:00:06.7]} 1-0

[Event "Early-Titled-Tuesday-Blitz-May-14-2024"]
[Site "Chess.com"]
[Date "2024.05.14"]
[Round "3"]
[White "TimGrutter03"]
[Black "Szparu"]
[Result "0-1"]
[WhiteElo "2566"]
[BlackElo "2863"]
[TimeControl "180+1"]
[EndTime "8:30:17 PDT"]
[Termination "Szparu won by resignation"]

1. e4 {[%clk 0:03:00.1]} 1... c5 {[%clk 0:02:59.8]} 2. Nf3 {[%clk 0:02:59.8]}
2... a6 {[%clk 0:03:00.2]} 3. a4 {[%clk 0:02:47.4]} 3... Nc6 {[%clk 0:02:57.5]}
4. Nc3 {[%clk 0:02:46.5]} 4... Nf6 {[%clk 0:02:55]} 5. e5 {[%clk 0:02:36.3]}
5... Ng4 {[%clk 0:02:54.8]} 6. Qe2 {[%clk 0:02:36.9]} 6... f6 {[%clk 0:02:29.7]}
7. exf6 {[%clk 0:02:30.2]} 7... Nxf6 {[%clk 0:02:30.6]} 8. g3 {[%clk 0:02:26.2]}
8... g6 {[%clk 0:02:21.7]} 9. Bg2 {[%clk 0:02:25.3]} 9... Bg7 {[%clk 0:02:22.2]}
10. O-O {[%clk 0:02:18.2]} 10... O-O {[%clk 0:02:22.5]} 11. d3 {[%clk 0:02:18]}
11... d6 {[%clk 0:02:18.2]} 12. Bg5 {[%clk 0:02:05.9]} 12... Bf5 {[%clk
0:02:17.9]} 13. Rfe1 {[%clk 0:01:58.5]} 13... Qd7 {[%clk 0:02:17.7]} 14. Rad1
{[%clk 0:01:40.9]} 14... Bg4 {[%clk 0:02:13.7]} 15. Qe3 {[%clk 0:01:24.5]} 15...
Rf7 {[%clk 0:02:11.5]} 16. Bxf6 {[%clk 0:01:03.5]} 16... Bxf6 {[%clk 0:02:04.2]}
17. Nd5 {[%clk 0:01:01.8]} 17... Raf8 {[%clk 0:02:00.4]} 18. c3 {[%clk
0:00:35.4]} 18... Bg7 {[%clk 0:02:00.7]} 19. Ng5 {[%clk 0:00:20.9]} 19... Rxf2
{[%clk 0:01:33.1]} 20. Rd2 {[%clk 0:00:20.9]} 20... Rxd2 {[%clk 0:01:28.7]} 21.
Qxd2 {[%clk 0:00:21.8]} 21... Bh6 {[%clk 0:01:25]} 22. h4 {[%clk 0:00:21.5]}
22... e5 {[%clk 0:01:11.4]} 23. Ne3 {[%clk 0:00:13.2]} 23... Bxg5 {[%clk
0:01:08.3]} 24. hxg5 {[%clk 0:00:14.1]} 24... Be6 {[%clk 0:01:08.3]} 25. Bd5
{[%clk 0:00:09.1]} 25... Ne7 {[%clk 0:01:06.9]} 26. Qg2 {[%clk 0:00:08]} 26...
Nxd5 {[%clk 0:00:52.3]} 27. Nxd5 {[%clk 0:00:08.9]} 27... Bxd5 {[%clk
0:00:52.3]} 28. Qxd5+ {[%clk 0:00:09.6]} 28... Qf7 {[%clk 0:00:52.9]} 29. Qxf7+
{[%clk 0:00:03.7]} 29... Kxf7 {[%clk 0:00:53.8]} 30. d4 {[%clk 0:00:03.3]} 30...
Ke6 {[%clk 0:00:48.8]} 31. dxe5 {[%clk 0:00:01.7]} 31... dxe5 {[%clk 0:00:49.7]}
32. Kg2 {[%clk 0:00:02]} 32... Rf5 {[%clk 0:00:46.6]} 33. Rh1 {[%clk 0:00:02.5]}
33... Rf7 {[%clk 0:00:45.5]} 34. Re1 {[%clk 0:00:02.4]} 34... Rd7 {[%clk
0:00:44.8]} 35. g4 {[%clk 0:00:01.7]} 35... Rd2+ {[%clk 0:00:44.2]} 36. Kf3
{[%clk 0:00:02.1]} 36... Rxb2 {[%clk 0:00:43.6]} 37. Rh1 {[%clk 0:00:02.7]}
37... Rb3 {[%clk 0:00:39.8]} 38. Rxh7 {[%clk 0:00:03.4]} 38... Rxc3+ {[%clk
0:00:40.5]} 39. Kf2 {[%clk 0:00:03.8]} 39... Rc4 {[%clk 0:00:40]} 40. Rxb7
{[%clk 0:00:03.3]} 40... Rxg4 {[%clk 0:00:39.8]} 41. Rb6+ {[%clk 0:00:03.6]}
41... Kf5 {[%clk 0:00:39.1]} 42. Rxa6 {[%clk 0:00:02.8]} 42... Kxg5 {[%clk
0:00:39.3]} 43. Rc6 {[%clk 0:00:01.7]} 43... Rxa4 {[%clk 0:00:37.9]} 44. Rxc5
{[%clk 0:00:02.2]} 44... Kf4 {[%clk 0:00:36.5]} 45. Rc8 {[%clk 0:00:02.1]} 45...
Ra2+ {[%clk 0:00:36.1]} 46. Kf1 {[%clk 0:00:02.6]} 46... g5 {[%clk 0:00:35.5]}
47. Rf8+ {[%clk 0:00:03.1]} 47... Ke3 {[%clk 0:00:35.7]} 48. Rf5 {[%clk
0:00:03.2]} 48... e4 {[%clk 0:00:29.8]} 49. Rxg5 {[%clk 0:00:02.8]} 49... Ra1+
{[%clk 0:00:29.4]} 50. Kg2 {[%clk 0:00:02.9]} 50... Ke2 {[%clk 0:00:28.2]} 51.
Rb5 {[%clk 0:00:02.8]} 51... Ra2 {[%clk 0:00:24.8]} 52. Kg1 {[%clk 0:00:01.6]}
52... Rc2 {[%clk 0:00:20.7]} 53. Re5 {[%clk 0:00:01.3]} 53... e3 {[%clk
0:00:20.9]} 54. Ra5 {[%clk 0:00:01.8]} 54... Rb2 {[%clk 0:00:21.1]} 55. Ra3
{[%clk 0:00:01.9]} 55... Kd2 {[%clk 0:00:21]} 56. Ra8 {[%clk 0:00:01.8]} 56...
Rb1+ {[%clk 0:00:18.2]} 57. Kg2 {[%clk 0:00:01.8]} 57... e2 {[%clk 0:00:18.9]}
58. Rd8+ {[%clk 0:00:02.3]} 58... Kc3 {[%clk 0:00:19.1]} 59. Rc8+ {[%clk
0:00:02.7]} 59... Kd4 {[%clk 0:00:19.5]} 60. Rd8+ {[%clk 0:00:03.3]} 60... Kc5
{[%clk 0:00:20.1]} 61. Rc8+ {[%clk 0:00:03.7]} 61... Kd6 {[%clk 0:00:20.7]} 62.
Rd8+ {[%clk 0:00:04.3]} 62... Kc7 {[%clk 0:00:21.3]} 63. Re8 {[%clk 0:00:04.4]}
63... e1=Q {[%clk 0:00:21.2]} 0-1

[Event "Early-Titled-Tuesday-Blitz-May-14-2024"]
[Site "Chess.com"]
[Date "2024.05.14"]
[Round "3"]
[White "bennyficial"]
[Black "GMAneta"]
[Result "0-1"]
[WhiteElo "2143"]
[BlackElo "2560"]
[TimeControl "180+1"]
[EndTime "8:30:21 PDT"]
[Termination "GMAneta won by resignation"]

1. Nf3 {[%clk 0:03:00.9]} 1... Nf6 {[%clk 0:02:57.6]} 2. c4 {[%clk 0:03:01.2]}
2... g6 {[%clk 0:02:48.1]} 3. b3 {[%clk 0:03:00.8]} 3... Bg7 {[%clk 0:02:25.7]}
4. Bb2 {[%clk 0:03:01.3]} 4... O-O {[%clk 0:02:22.9]} 5. g3 {[%clk 0:03:01.6]}
5... d6 {[%clk 0:02:19.9]} 6. d4 {[%clk 0:03:01.9]} 6... c5 {[%clk 0:02:18.5]}
7. Bg2 {[%clk 0:02:59.6]} 7... Nc6 {[%clk 0:02:15.4]} 8. d5 {[%clk 0:02:57.5]}
8... Na5 {[%clk 0:02:12.7]} 9. O-O {[%clk 0:02:52.6]} 9... a6 {[%clk 0:02:10.8]}
10. Nbd2 {[%clk 0:02:24.6]} 10... b5 {[%clk 0:02:08.5]} 11. Qc2 {[%clk
0:02:24.1]} 11... Rb8 {[%clk 0:01:51.9]} 12. cxb5 {[%clk 0:02:08.2]} 12... axb5
{[%clk 0:01:44.2]} 13. e4 {[%clk 0:02:08.2]} 13... Ba6 {[%clk 0:01:42]} 14. Rfe1
{[%clk 0:02:06.4]} 14... Qc7 {[%clk 0:01:40.9]} 15. b4 {[%clk 0:01:53.5]} 15...
Nc4 {[%clk 0:01:32.2]} 16. Nxc4 {[%clk 0:01:51.4]} 16... bxc4 {[%clk 0:01:21.9]}
17. b5 {[%clk 0:01:33.1]} 17... Bxb5 {[%clk 0:01:21]} 18. Bc3 {[%clk 0:01:26.1]}
18... Qa7 {[%clk 0:01:08.2]} 19. a4 {[%clk 0:01:24.2]} 19... Ba6 {[%clk
0:01:02.5]} 20. Red1 {[%clk 0:01:19.1]} 20... Rb3 {[%clk 0:00:44.5]} 21. e5
{[%clk 0:01:11.9]} 21... Nd7 {[%clk 0:00:26]} 22. Rab1 {[%clk 0:01:01.1]} 22...
Rfb8 {[%clk 0:00:24.5]} 23. Ba1 {[%clk 0:00:53.3]} 23... Nxe5 {[%clk 0:00:21.7]}
24. Nxe5 {[%clk 0:00:53.3]} 24... Bxe5 {[%clk 0:00:21.4]} 25. Bxe5 {[%clk
0:00:52]} 25... dxe5 {[%clk 0:00:22.3]} 26. Bf1 {[%clk 0:00:48.7]} 26... Qb6
{[%clk 0:00:21.3]} 27. Ra1 {[%clk 0:00:41.1]} 27... Rb2 {[%clk 0:00:20.6]} 28.
Qc3 {[%clk 0:00:36.5]} 28... Qf6 {[%clk 0:00:20.2]} 29. Rd2 {[%clk 0:00:27.7]}
29... Rxd2 {[%clk 0:00:14.7]} 30. Qxd2 {[%clk 0:00:28.6]} 30... e4 {[%clk
0:00:15.2]} 31. Rc1 {[%clk 0:00:25.2]} 31... Rb2 {[%clk 0:00:14.6]} 32. Qe3
{[%clk 0:00:20.7]} 32... Qd4 {[%clk 0:00:14.5]} 33. Qxd4 {[%clk 0:00:17.3]}
33... cxd4 {[%clk 0:00:15.4]} 34. Bxc4 {[%clk 0:00:17.6]} 34... Bxc4 {[%clk
0:00:15]} 35. Rxc4 {[%clk 0:00:18.5]} 35... d3 {[%clk 0:00:15.6]} 36. Rd4 {[%clk
0:00:16.9]} 36... d2 {[%clk 0:00:14.6]} 37. Kg2 {[%clk 0:00:16.6]} 37... f5
{[%clk 0:00:14.9]} 38. a5 {[%clk 0:00:16.3]} 38... Kf7 {[%clk 0:00:14.2]} 39. a6
{[%clk 0:00:16.8]} 39... Kf6 {[%clk 0:00:14.2]} 40. a7 {[%clk 0:00:16.7]} 40...
Ra2 {[%clk 0:00:14.6]} 41. Rxd2 {[%clk 0:00:15.6]} 41... Rxa7 {[%clk 0:00:14.3]}
42. h4 {[%clk 0:00:15.1]} 42... Ke5 {[%clk 0:00:14.4]} 43. h5 {[%clk 0:00:12.5]}
43... Rd7 {[%clk 0:00:14.3]} 44. hxg6 {[%clk 0:00:11.6]} 44... hxg6 {[%clk
0:00:15.2]} 45. Rd1 {[%clk 0:00:10.7]} 45... Rxd5 {[%clk 0:00:15.5]} 46. Rh1
{[%clk 0:00:11.5]} 46... Rd2 {[%clk 0:00:15.5]} 47. Rh6 {[%clk 0:00:09.2]} 47...
Kf6 {[%clk 0:00:15.3]} 48. Kf1 {[%clk 0:00:08.7]} 48... e5 {[%clk 0:00:15]} 49.
Rh8 {[%clk 0:00:09]} 49... Ra2 {[%clk 0:00:15.1]} 50. Rf8+ {[%clk 0:00:09]}
50... Kg5 {[%clk 0:00:15.4]} 51. Re8 {[%clk 0:00:09.2]} 51... Kg4 {[%clk
0:00:15.5]} 52. Rxe5 {[%clk 0:00:08.6]} 52... Kf3 {[%clk 0:00:15.7]} 53. Ke1
{[%clk 0:00:07.9]} 53... Rxf2 {[%clk 0:00:15.4]} 54. Re6 {[%clk 0:00:07.7]}
54... Re2+ {[%clk 0:00:15.3]} 55. Kf1 {[%clk 0:00:07.5]} 55... Rf2+ {[%clk
0:00:15.3]} 56. Ke1 {[%clk 0:00:07.9]} 56... Rg2 {[%clk 0:00:15.6]} 57. Rxg6
{[%clk 0:00:05.7]} 57... Rxg3 {[%clk 0:00:15.7]} 58. Rf6 {[%clk 0:00:06.3]}
58... f4 {[%clk 0:00:15.5]} 59. Rf5 {[%clk 0:00:06.1]} 59... e3 {[%clk
0:00:15.7]} 60. Kf1 {[%clk 0:00:04]} 60... e2+ {[%clk 0:00:15.2]} 0-1

[Event "Early-Titled-Tuesday-Blitz-May-14-2024"]
[Site "Chess.com"]
[Date "2024.05.14"]
[Round "3"]
[White "David_ATM"]
[Black "Bilan_Danila"]
[Result "0-1"]
[WhiteElo "2452"]
[BlackElo "2661"]
[TimeControl "180+1"]
[EndTime "8:30:25 PDT"]
[Termination "Bilan_Danila won on time"]

1. e4 {[%clk 0:03:00.9]} 1... c6 {[%clk 0:03:00]} 2. d4 {[%clk 0:02:59.6]} 2...
d5 {[%clk 0:03:00.4]} 3. Nc3 {[%clk 0:02:59.9]} 3... b5 {[%clk 0:02:54.2]} 4.
exd5 {[%clk 0:02:54.9]} 4... b4 {[%clk 0:02:54.2]} 5. Nce2 {[%clk 0:02:55.5]}
5... cxd5 {[%clk 0:02:53.9]} 6. Nf3 {[%clk 0:02:55.6]} 6... Nf6 {[%clk
0:02:53.1]} 7. Ng3 {[%clk 0:02:53.1]} 7... e6 {[%clk 0:02:48]} 8. Ne5 {[%clk
0:02:49.1]} 8... Bd6 {[%clk 0:02:42.4]} 9. Bd3 {[%clk 0:02:20.8]} 9... Ba6
{[%clk 0:02:33.1]} 10. O-O {[%clk 0:02:17.8]} 10... Bxd3 {[%clk 0:02:32.9]} 11.
cxd3 {[%clk 0:02:07.3]} 11... Nbd7 {[%clk 0:02:23.1]} 12. Qa4 {[%clk 0:02:02.4]}
12... O-O {[%clk 0:02:16.1]} 13. Bf4 {[%clk 0:01:55.7]} 13... Nb6 {[%clk
0:01:31.4]} 14. Qb3 {[%clk 0:01:43.6]} 14... a5 {[%clk 0:01:09.3]} 15. Rfc1
{[%clk 0:01:43.1]} 15... a4 {[%clk 0:01:01.6]} 16. Qd1 {[%clk 0:01:41.1]} 16...
Qe7 {[%clk 0:00:51.9]} 17. b3 {[%clk 0:01:38.4]} 17... axb3 {[%clk 0:00:48.4]}
18. axb3 {[%clk 0:01:39.3]} 18... Ra3 {[%clk 0:00:47.1]} 19. Rc6 {[%clk
0:00:57.7]} 19... Bxe5 {[%clk 0:00:40.5]} 20. Bxe5 {[%clk 0:00:51.9]} 20... Qb7
{[%clk 0:00:29.6]} 21. Rc7 {[%clk 0:00:38.7]} 21... Qa6 {[%clk 0:00:29]} 22.
Rxa3 {[%clk 0:00:22.9]} 22... bxa3 {[%clk 0:00:28.6]} 23. Bxf6 {[%clk
0:00:23.5]} 23... gxf6 {[%clk 0:00:19.1]} 24. Qg4+ {[%clk 0:00:22.1]} 24... Kh8
{[%clk 0:00:19.1]} 25. Qf4 {[%clk 0:00:19.7]} 25... Qxd3 {[%clk 0:00:13.5]} 26.
Qxf6+ {[%clk 0:00:19.7]} 26... Kg8 {[%clk 0:00:14]} 27. Qg5+ {[%clk 0:00:15.6]}
27... Qg6 {[%clk 0:00:12.8]} 28. Qxg6+ {[%clk 0:00:11.3]} 28... hxg6 {[%clk
0:00:13.7]} 29. Rc1 {[%clk 0:00:08.4]} 29... Ra8 {[%clk 0:00:06.1]} 30. Ra1
{[%clk 0:00:09.3]} 30... a2 {[%clk 0:00:07]} 31. Kf1 {[%clk 0:00:08.8]} 31...
Ra3 {[%clk 0:00:07.6]} 32. Ke2 {[%clk 0:00:03.6]} 32... Nc8 {[%clk 0:00:08]} 33.
Kd2 {[%clk 0:00:04]} 33... Nd6 {[%clk 0:00:08.5]} 34. Kc2 {[%clk 0:00:04.2]}
34... Nb5 {[%clk 0:00:08.8]} 35. Ne2 {[%clk 0:00:02.7]} 35... Ra7 {[%clk
0:00:04.5]} 36. Kb2 {[%clk 0:00:03.1]} 36... Rc7 {[%clk 0:00:03.9]} 37. Rxa2
{[%clk 0:00:03.4]} 37... Kg7 {[%clk 0:00:04.6]} 38. Ra1 {[%clk 0:00:03.8]} 38...
Nd6 {[%clk 0:00:04.8]} 39. Rc1 {[%clk 0:00:04]} 39... Rb7 {[%clk 0:00:05.4]} 40.
Rc6 {[%clk 0:00:03.7]} 40... Ne4 {[%clk 0:00:05.7]} 41. f3 {[%clk 0:00:03.9]}
41... Nd2 {[%clk 0:00:05.6]} 42. Rc3 {[%clk 0:00:03.9]} 42... Nf1 {[%clk
0:00:05.4]} 43. h3 {[%clk 0:00:02.6]} 43... f5 {[%clk 0:00:05.8]} 44. Ka3 {[%clk
0:00:02.5]} 44... f4 {[%clk 0:00:05.9]} 45. b4 {[%clk 0:00:02.7]} 45... g5
{[%clk 0:00:05.7]} 46. Ka4 {[%clk 0:00:02.8]} 46... Ne3 {[%clk 0:00:06.3]} 47.
b5 {[%clk 0:00:02.5]} 47... Nxg2 {[%clk 0:00:06.9]} 48. Ka5 {[%clk 0:00:02.2]}
48... Ne3 {[%clk 0:00:07.6]} 49. b6 {[%clk 0:00:02.6]} 49... Nc4+ {[%clk
0:00:07.8]} 50. Kb5 {[%clk 0:00:02.4]} 50... Rxb6+ {[%clk 0:00:07.2]} 51. Kc5
{[%clk 0:00:03]} 51... Rb2 {[%clk 0:00:07]} 52. Nc1 {[%clk 0:00:01.2]} 52... Rh2
{[%clk 0:00:06.4]} 53. Nd3 {[%clk 0:00:01.8]} 53... Rxh3 {[%clk 0:00:06]} 54.
Nb4 {[%clk 0:00:01.8]} 54... g4 {[%clk 0:00:05.8]} 0-1